[Event "*** Titled Tuesday 3|2 Blitz"]
[Site "Chess.com"]
[Date "2016.10.04"]
[Round "3"]
[White "Rumpel-VK"]
[Black "AllStarShark"]
[Result "1-0"]
[WhiteElo "2461"]
[BlackElo "2274"]
[TimeControl "180+2"]
[EndTime "17:38:05 PDT"]
[Termination "Rumpel-VK won by checkmate"]

1. e4 {[%clk 0:03:01.9]} 1... c6 {[%clk 0:02:58.2]} 2. d4 {[%clk 0:03:00.1]}
2... d5 {[%clk 0:02:59.2]} 3. e5 {[%clk 0:03:00.6]} 3... Bf5 {[%clk 0:02:59.5]}
4. Nd2 {[%clk 0:02:57.5]} 4... e6 {[%clk 0:02:58.8]} 5. Nb3 {[%clk 0:02:58.1]}
5... Ne7 {[%clk 0:02:58.4]} 6. Be2 {[%clk 0:02:59]} 6... Nd7 {[%clk 0:02:58.8]}
7. Nf3 {[%clk 0:02:59.4]} 7... h6 {[%clk 0:03:00]} 8. O-O {[%clk 0:02:59.7]}
8... b6 {[%clk 0:02:57.2]} 9. Nh4 {[%clk 0:02:44.7]} 9... Bh7 {[%clk 0:02:57.1]}
10. f4 {[%clk 0:02:46]} 10... Nf5 {[%clk 0:02:57.8]} 11. Nf3 {[%clk 0:02:44.6]}
11... Be7 {[%clk 0:02:57.8]} 12. g4 {[%clk 0:02:44.2]} 12... Nh4 {[%clk
0:02:58.4]} 13. Nxh4 {[%clk 0:02:45.3]} 13... Bxh4 {[%clk 0:02:59.9]} 14. f5
{[%clk 0:02:44.8]} 14... O-O {[%clk 0:02:50.7]} 15. Be3 {[%clk 0:02:32.9]} 15...
Bg5 {[%clk 0:02:48.9]} 16. Qd2 {[%clk 0:02:33.1]} 16... Bxe3+ {[%clk 0:02:46.1]}
17. Qxe3 {[%clk 0:02:33.9]} 17... c5 {[%clk 0:02:38.3]} 18. c3 {[%clk 0:02:32]}
18... cxd4 {[%clk 0:02:37.2]} 19. Nxd4 {[%clk 0:02:22.9]} 19... exf5 {[%clk
0:02:20.4]} 20. gxf5 {[%clk 0:02:06.1]} 20... Re8 {[%clk 0:02:07.2]} 21. e6
{[%clk 0:02:05.1]} 21... fxe6 {[%clk 0:02:05.5]} 22. fxe6 {[%clk 0:02:05.4]}
22... Nc5 {[%clk 0:01:59.6]} 23. Bg4 {[%clk 0:01:52.9]} 23... Ne4 {[%clk
0:01:51.5]} 24. Rf7 {[%clk 0:01:48.4]} 24... Qh4 {[%clk 0:01:43.2]} 25. Bf5
{[%clk 0:01:39.4]} 25... Bxf5 {[%clk 0:01:37.3]} 26. Rxg7+ {[%clk 0:01:39.9]}
26... Kh8 {[%clk 0:01:34.1]} 27. Nxf5 {[%clk 0:01:40.6]} 27... Qh5 {[%clk
0:01:17.7]} 28. Qd4 {[%clk 0:01:29.4]} 28... Qxf5 {[%clk 0:00:56.3]} 29. Rf7+
{[%clk 0:01:16.3]} 29... Nf6 {[%clk 0:00:55.5]} 30. Rxf6 {[%clk 0:01:12.6]}
30... Rg8+ {[%clk 0:00:50.1]} 31. Kh1 {[%clk 0:01:01.1]} 31... Qe4+ {[%clk
0:00:47.9]} 32. Qxe4 {[%clk 0:01:01.3]} 32... dxe4 {[%clk 0:00:49.8]} 33. Rxh6+
{[%clk 0:01:01.5]} 33... Kg7 {[%clk 0:00:50.7]} 34. Rh4 {[%clk 0:01:02.4]} 34...
Rad8 {[%clk 0:00:44]} 35. Rg1+ {[%clk 0:01:00]} 35... Kf6 {[%clk 0:00:44.4]} 36.
Rxg8 {[%clk 0:01:00.5]} 36... Rxg8 {[%clk 0:00:44.5]} 37. Rxe4 {[%clk
0:01:01.2]} 37... Ke7 {[%clk 0:00:45.6]} 38. h4 {[%clk 0:00:59.4]} 38... Rd8
{[%clk 0:00:44.6]} 39. Re2 {[%clk 0:00:49.8]} 39... Rh8 {[%clk 0:00:43.1]} 40.
Re4 {[%clk 0:00:49]} 40... Rd8 {[%clk 0:00:43.8]} 41. Rd4 {[%clk 0:00:49.5]}
41... Rh8 {[%clk 0:00:36.3]} 42. Rd7+ {[%clk 0:00:47.9]} 42... Kxe6 {[%clk
0:00:37.5]} 43. Rxa7 {[%clk 0:00:49.3]} 43... Rxh4+ {[%clk 0:00:38.3]} 44. Kg2
{[%clk 0:00:50.8]} 44... Kd5 {[%clk 0:00:36.3]} 45. Rd7+ {[%clk 0:00:36.9]}
45... Kc4 {[%clk 0:00:25]} 46. Rd2 {[%clk 0:00:35.6]} 46... b5 {[%clk 0:00:21]}
47. Kf2 {[%clk 0:00:33.8]} 47... Rh2+ {[%clk 0:00:21.7]} 48. Ke3 {[%clk
0:00:32.6]} 48... Rh3+ {[%clk 0:00:22.5]} 49. Ke2 {[%clk 0:00:33.6]} 49... Rh2+
{[%clk 0:00:23.6]} 50. Kd1 {[%clk 0:00:34.4]} 50... Rh1+ {[%clk 0:00:24.9]} 51.
Kc2 {[%clk 0:00:35.3]} 51... Kc5 {[%clk 0:00:26.2]} 52. b3 {[%clk 0:00:35.6]}
52... Ra1 {[%clk 0:00:26.5]} 53. Kb2 {[%clk 0:00:35.5]} 53... Rh1 {[%clk
0:00:27.2]} 54. Ka3 {[%clk 0:00:34]} 54... Rh4 {[%clk 0:00:27.5]} 55. Rg2 {[%clk
0:00:33.8]} 55... Rh8 {[%clk 0:00:27.7]} 56. Rg5+ {[%clk 0:00:34.4]} 56... Kc6
{[%clk 0:00:28.9]} 57. Rg4 {[%clk 0:00:33.5]} 57... Kc5 {[%clk 0:00:29]} 58. Rg2
{[%clk 0:00:32.8]} 58... Rh7 {[%clk 0:00:29.1]} 59. Rc2 {[%clk 0:00:31.6]} 59...
Rh4 {[%clk 0:00:27.3]} 60. Kb2 {[%clk 0:00:30.1]} 60... Rh3 {[%clk 0:00:27.7]}
61. c4 {[%clk 0:00:29.1]} 61... b4 {[%clk 0:00:19.3]} 62. a3 {[%clk 0:00:28.8]}
62... Rg3 {[%clk 0:00:18.2]} 63. Rd2 {[%clk 0:00:29.4]} 63... Rg5 {[%clk
0:00:12]} 64. Rd5+ {[%clk 0:00:20.5]} 64... Rxd5 {[%clk 0:00:12.7]} 65. axb4+
{[%clk 0:00:21.3]} 65... Kd6 {[%clk 0:00:08.2]} 66. cxd5 {[%clk 0:00:21.8]}
66... Kxd5 {[%clk 0:00:09.6]} 67. Ka3 {[%clk 0:00:21.9]} 67... Kc6 {[%clk
0:00:08.6]} 68. Ka4 {[%clk 0:00:22.7]} 68... Kb6 {[%clk 0:00:10]} 69. b5 {[%clk
0:00:23.7]} 69... Kb7 {[%clk 0:00:11.3]} 70. Ka5 {[%clk 0:00:24.8]} 70... Ka7
{[%clk 0:00:12.8]} 71. b6+ {[%clk 0:00:25.9]} 71... Kb7 {[%clk 0:00:14.2]} 72.
Kb5 {[%clk 0:00:27.1]} 72... Kb8 {[%clk 0:00:15.7]} 73. Ka6 {[%clk 0:00:28.1]}
73... Ka8 {[%clk 0:00:16.9]} 74. b7+ {[%clk 0:00:29.2]} 74... Kb8 {[%clk
0:00:18.8]} 75. b4 {[%clk 0:00:30.1]} 75... Kc7 {[%clk 0:00:20.1]} 76. Ka7
{[%clk 0:00:31.2]} 76... Kc6 {[%clk 0:00:22]} 77. b8=Q {[%clk 0:00:32.2]} 77...
Kd5 {[%clk 0:00:23.2]} 78. b5 {[%clk 0:00:33.4]} 78... Kc4 {[%clk 0:00:25.1]}
79. b6 {[%clk 0:00:34.6]} 79... Kb4 {[%clk 0:00:27]} 80. b7 {[%clk 0:00:35.8]}
80... Ka5 {[%clk 0:00:28.9]} 81. Qa8 {[%clk 0:00:32.3]} 81... Ka4 {[%clk
0:00:30.8]} 82. b8=Q {[%clk 0:00:32.3]} 82... Ka5 {[%clk 0:00:32.7]} 83. Qbb7
{[%clk 0:00:33.3]} 83... Ka4 {[%clk 0:00:34.1]} 84. Kb8# {[%clk 0:00:34.4]} 1-0

[Event "*** Titled Tuesday 3|2 Blitz"]
[Site "Chess.com"]
[Date "2016.10.04"]
[Round "3"]
[White "lionheart95"]
[Black "IamSchrodingersCat"]
[Result "1-0"]
[WhiteElo "2413"]
[BlackElo "2273"]
[TimeControl "180+2"]
[EndTime "17:38:05 PDT"]
[Termination "lionheart95 won by resignation"]

1. e4 {[%clk 0:03:01.9]} 1... c5 {[%clk 0:03:00.4]} 2. Nf3 {[%clk 0:03:00.5]}
2... d6 {[%clk 0:03:01.3]} 3. d4 {[%clk 0:03:01.1]} 3... cxd4 {[%clk 0:03:03.2]}
4. Nxd4 {[%clk 0:03:02.3]} 4... Nf6 {[%clk 0:03:04.3]} 5. Nc3 {[%clk 0:03:03.7]}
5... g6 {[%clk 0:03:05.4]} 6. Be3 {[%clk 0:03:03.1]} 6... Bg7 {[%clk 0:03:06.4]}
7. f3 {[%clk 0:03:04.2]} 7... O-O {[%clk 0:03:07.3]} 8. Bc4 {[%clk 0:03:04.9]}
8... Nc6 {[%clk 0:03:08.3]} 9. h4 {[%clk 0:03:05.7]} 9... Bd7 {[%clk 0:03:04]}
10. Qd2 {[%clk 0:03:04.9]} 10... Rc8 {[%clk 0:03:02.2]} 11. Bb3 {[%clk
0:03:01.7]} 11... Ne5 {[%clk 0:03:02]} 12. O-O-O {[%clk 0:02:56.8]} 12... h5
{[%clk 0:03:02.3]} 13. Bg5 {[%clk 0:02:55.8]} 13... Re8 {[%clk 0:03:01.5]} 14.
Rhe1 {[%clk 0:02:49.7]} 14... Qa5 {[%clk 0:02:48.3]} 15. Kb1 {[%clk 0:02:47.4]}
15... b5 {[%clk 0:02:13.9]} 16. Bxf6 {[%clk 0:02:47.1]} 16... Bxf6 {[%clk
0:02:09.9]} 17. Nd5 {[%clk 0:02:46.6]} 17... Qxd2 {[%clk 0:02:11.1]} 18. Nxf6+
{[%clk 0:02:47.3]} 18... exf6 {[%clk 0:02:09.5]} 19. Rxd2 {[%clk 0:02:49.2]}
19... Red8 {[%clk 0:01:58.6]} 20. Red1 {[%clk 0:02:46.1]} 20... Kf8 {[%clk
0:01:59.1]} 21. Ne2 {[%clk 0:02:45.4]} 21... Ke7 {[%clk 0:01:59]} 22. Nc3 {[%clk
0:02:45.8]} 22... Bc6 {[%clk 0:01:53.4]} 23. Bd5 {[%clk 0:02:40.4]} 23... Be8
{[%clk 0:01:52.2]} 24. Bb7 {[%clk 0:02:38.8]} 24... Rb8 {[%clk 0:01:47]} 25. Bd5
{[%clk 0:02:34.3]} 25... b4 {[%clk 0:01:33.9]} 26. Ne2 {[%clk 0:02:34.5]} 26...
Bd7 {[%clk 0:01:33.7]} 27. Bb3 {[%clk 0:02:22.2]} 27... Rb6 {[%clk 0:01:29.7]}
28. Nf4 {[%clk 0:02:21.1]} 28... Be6 {[%clk 0:01:28.1]} 29. Ne2 {[%clk 0:02:15]}
29... a5 {[%clk 0:01:26.8]} 30. Nd4 {[%clk 0:02:10.6]} 30... Ra8 {[%clk
0:01:10.3]} 31. Bxe6 {[%clk 0:02:02.5]} 31... fxe6 {[%clk 0:01:09.2]} 32. Ne2
{[%clk 0:02:03.9]} 32... Rd8 {[%clk 0:00:59.7]} 33. Nf4 {[%clk 0:02:04.5]} 33...
Kf7 {[%clk 0:01:00.7]} 34. Rd4 {[%clk 0:02:04.2]} 34... Rc6 {[%clk 0:01:00.6]}
35. b3 {[%clk 0:01:59]} 35... Rdc8 {[%clk 0:00:51.3]} 36. R4d2 {[%clk
0:01:59.2]} 36... a4 {[%clk 0:00:48.4]} 37. bxa4 {[%clk 0:01:57.5]} 37... Nc4
{[%clk 0:00:48.6]} 38. Re2 {[%clk 0:01:51.5]} 38... Na3+ {[%clk 0:00:48.5]} 39.
Kb2 {[%clk 0:01:51.4]} 39... Rxc2+ {[%clk 0:00:32]} 40. Rxc2 {[%clk 0:01:51.2]}
40... Rxc2+ {[%clk 0:00:33.9]} 41. Kb3 {[%clk 0:01:50.3]} 41... e5 {[%clk
0:00:34.6]} 42. Kxb4 {[%clk 0:01:38.3]} 42... Nc4 {[%clk 0:00:21.1]} 43. Nd3
{[%clk 0:01:34.2]} 43... Ne3 {[%clk 0:00:19.4]} 44. Rc1 {[%clk 0:01:29.8]} 44...
Rxa2 {[%clk 0:00:16.8]} 45. a5 {[%clk 0:01:29.4]} 45... Nxg2 {[%clk 0:00:14.1]}
46. Rc7+ {[%clk 0:01:25]} 46... Ke6 {[%clk 0:00:14.9]} 47. Nc1 {[%clk
0:01:24.9]} 47... Ra1 {[%clk 0:00:06.2]} 48. Nb3 {[%clk 0:01:22.3]} 48... Rxa5
{[%clk 0:00:07.8]} 49. Nxa5 {[%clk 0:01:09.7]} 49... Nxh4 {[%clk 0:00:09.7]} 50.
Nc6 {[%clk 0:01:09.9]} 50... f5 {[%clk 0:00:08.4]} 51. Nd8+ {[%clk 0:01:02.4]}
51... Kf6 {[%clk 0:00:09.2]} 52. Rf7+ {[%clk 0:01:03.1]} 52... Kg5 {[%clk
0:00:10.4]} 53. Ne6+ {[%clk 0:01:03.9]} 53... Kh6 {[%clk 0:00:08.7]} 54. Kc4
{[%clk 0:01:02.2]} 54... Nxf3 {[%clk 0:00:06.5]} 55. exf5 {[%clk 0:01:03]} 55...
gxf5 {[%clk 0:00:05.3]} 56. Rxf5 {[%clk 0:01:03.7]} 56... e4 {[%clk 0:00:05.1]}
57. Nf4 {[%clk 0:00:58.9]} 57... h4 {[%clk 0:00:05]} 58. Kc3 {[%clk 0:00:55]}
58... Kg7 {[%clk 0:00:04.9]} 59. Kc2 {[%clk 0:00:52.6]} 59... Kh6 {[%clk
0:00:05.7]} 60. Kd1 {[%clk 0:00:52.5]} 60... Ng5 {[%clk 0:00:06.9]} 61. Ke2
{[%clk 0:00:51.6]} 61... h3 {[%clk 0:00:06.6]} 62. Rf6+ {[%clk 0:00:50.2]} 62...
Kh7 {[%clk 0:00:07]} 63. Rxd6 {[%clk 0:00:47.3]} 63... h2 {[%clk 0:00:05.9]} 64.
Rd1 {[%clk 0:00:46.2]} 64... Nf3 {[%clk 0:00:04.8]} 65. Kf2 {[%clk 0:00:46.6]}
65... Ng1 {[%clk 0:00:03.6]} 66. Kg2 {[%clk 0:00:46.1]} 66... Nf3 {[%clk
0:00:04.2]} 67. Ne2 {[%clk 0:00:44.6]} 67... Kh6 {[%clk 0:00:04.6]} 68. Ng3
{[%clk 0:00:45.7]} 68... Kg5 {[%clk 0:00:05.2]} 69. Nxe4+ {[%clk 0:00:46.5]}
69... Kf4 {[%clk 0:00:06.5]} 70. Nf2 {[%clk 0:00:43.8]} 70... Ke3 {[%clk
0:00:06.9]} 71. Rd3+ {[%clk 0:00:41.7]} 71... Ke2 {[%clk 0:00:08]} 72. Rxf3
{[%clk 0:00:43.2]} 72... h1=Q+ {[%clk 0:00:06.4]} 73. Nxh1 {[%clk 0:00:45.1]}
1-0

[Event "*** Titled Tuesday 3|2 Blitz"]
[Site "Chess.com"]
[Date "2016.10.04"]
[Round "3"]
[White "pKiLz5Rn9b"]
[Black "psv98"]
[Result "1-0"]
[WhiteElo "2517"]
[BlackElo "2599"]
[TimeControl "180+2"]
[EndTime "17:42:34 PDT"]
[Termination "pKiLz5Rn9b won by resignation"]

1. e4 {[%clk 0:03:01.9]} 1... Nf6 {[%clk 0:02:55.1]} 2. e5 {[%clk 0:03:03.1]}
2... Nd5 {[%clk 0:02:56.1]} 3. d4 {[%clk 0:03:04.8]} 3... d6 {[%clk 0:02:57.1]}
4. Nf3 {[%clk 0:03:06.5]} 4... dxe5 {[%clk 0:02:58.1]} 5. Nxe5 {[%clk
0:03:06.9]} 5... c6 {[%clk 0:02:59.5]} 6. Bc4 {[%clk 0:03:07.9]} 6... Bf5 {[%clk
0:02:59.2]} 7. Bb3 {[%clk 0:03:07.8]} 7... Nd7 {[%clk 0:02:59.4]} 8. O-O {[%clk
0:03:07.5]} 8... Nxe5 {[%clk 0:02:58.7]} 9. dxe5 {[%clk 0:03:08.3]} 9... e6
{[%clk 0:03:00]} 10. Qe2 {[%clk 0:03:05.8]} 10... a5 {[%clk 0:02:43.8]} 11. Rd1
{[%clk 0:02:50.8]} 11... a4 {[%clk 0:02:43]} 12. Bc4 {[%clk 0:02:51.9]} 12...
Qc7 {[%clk 0:02:40.7]} 13. Bd3 {[%clk 0:02:47.1]} 13... Bg6 {[%clk 0:02:20.8]}
14. Bxg6 {[%clk 0:02:33.4]} 14... hxg6 {[%clk 0:02:22.7]} 15. c4 {[%clk
0:02:34.4]} 15... Nb4 {[%clk 0:02:15.6]} 16. Nc3 {[%clk 0:02:35.3]} 16... Be7
{[%clk 0:01:46.1]} 17. Bf4 {[%clk 0:02:34.7]} 17... O-O {[%clk 0:01:44.1]} 18.
a3 {[%clk 0:02:34.8]} 18... Na6 {[%clk 0:01:38.7]} 19. Nxa4 {[%clk 0:02:36.1]}
19... Rfd8 {[%clk 0:01:32.1]} 20. Nc3 {[%clk 0:02:28.2]} 20... Nc5 {[%clk
0:01:33.2]} 21. Qc2 {[%clk 0:02:29.3]} 21... Nd7 {[%clk 0:01:26]} 22. Re1 {[%clk
0:02:08]} 22... b5 {[%clk 0:01:09.9]} 23. cxb5 {[%clk 0:01:58]} 23... cxb5
{[%clk 0:01:11.8]} 24. Rac1 {[%clk 0:01:59.6]} 24... Qb7 {[%clk 0:00:57.8]} 25.
Qe4 {[%clk 0:01:55.6]} 25... Qxe4 {[%clk 0:00:56.7]} 26. Rxe4 {[%clk 0:01:56.7]}
26... Nc5 {[%clk 0:00:56.6]} 27. Be3 {[%clk 0:01:31.4]} 27... Nxe4 {[%clk
0:00:56.4]} 28. Nxe4 {[%clk 0:01:33.3]} 28... Rac8 {[%clk 0:00:55.4]} 29. Rb1
{[%clk 0:01:24.2]} 29... Rc2 {[%clk 0:00:53.1]} 30. Kf1 {[%clk 0:01:24.2]} 30...
f5 {[%clk 0:00:43.8]} 31. Nc3 {[%clk 0:01:03.4]} 31... b4 {[%clk 0:00:42.1]} 32.
axb4 {[%clk 0:00:59.7]} 32... Bxb4 {[%clk 0:00:44]} 33. Nb5 {[%clk 0:01:01.4]}
33... Rd5 {[%clk 0:00:37.1]} 34. Nd4 {[%clk 0:00:48.8]} 34... Rc8 {[%clk
0:00:29.2]} 35. Nxe6 {[%clk 0:00:33.9]} 35... Rxe5 {[%clk 0:00:30.1]} 36. Nf4
{[%clk 0:00:35.6]} 36... Kf7 {[%clk 0:00:17.8]} 37. Ke2 {[%clk 0:00:34.6]} 37...
Ree8 {[%clk 0:00:12.8]} 38. Nd3 {[%clk 0:00:29.5]} 38... Bd6 {[%clk 0:00:11.3]}
39. g3 {[%clk 0:00:31.1]} 39... g5 {[%clk 0:00:11.9]} 40. Kf3 {[%clk 0:00:29.1]}
40... Kg6 {[%clk 0:00:13.1]} 41. h3 {[%clk 0:00:22.8]} 41... Rc2 {[%clk
0:00:14.3]} 42. Ra1 {[%clk 0:00:23.2]} 42... Rc6 {[%clk 0:00:09]} 43. Ra5 {[%clk
0:00:22.7]} 43... Rb8 {[%clk 0:00:08.3]} 44. Bd4 {[%clk 0:00:17.3]} 44... Rb3
{[%clk 0:00:07.3]} 45. Bc3 {[%clk 0:00:18.9]} 45... Rcb6 {[%clk 0:00:05.9]} 46.
Ke2 {[%clk 0:00:19.4]} 46... R3b5 {[%clk 0:00:07]} 47. Ra7 {[%clk 0:00:20.6]}
47... Bf8 {[%clk 0:00:07.6]} 48. Ne5+ {[%clk 0:00:20.7]} 48... Kh7 {[%clk
0:00:04.9]} 49. Nf3 {[%clk 0:00:21.7]} 49... g4 {[%clk 0:00:05.4]} 50. Ng5+
{[%clk 0:00:17.3]} 50... Kg6 {[%clk 0:00:05.9]} 51. h4 {[%clk 0:00:19]} 51...
Rd5 {[%clk 0:00:05.5]} 52. f3 {[%clk 0:00:12.9]} 52... gxf3+ {[%clk 0:00:05.3]}
53. Nxf3 {[%clk 0:00:14.8]} 53... Re6+ {[%clk 0:00:06.4]} 54. Kf1 {[%clk
0:00:15.3]} 54... Re7 {[%clk 0:00:05.2]} 55. Ra6+ {[%clk 0:00:16.1]} 55... Kh7
{[%clk 0:00:06.1]} 56. Ng5+ {[%clk 0:00:17.5]} 56... Kg8 {[%clk 0:00:07.5]} 57.
Ra8 {[%clk 0:00:19.2]} 57... Rb5 {[%clk 0:00:07.5]} 58. Kf2 {[%clk 0:00:18.1]}
58... Reb7 {[%clk 0:00:08.9]} 59. Kf3 {[%clk 0:00:18.3]} 59... Rb8 {[%clk
0:00:09.9]} 60. Ra7 {[%clk 0:00:18.7]} 60... R5b7 {[%clk 0:00:09.9]} 61. Ra6
{[%clk 0:00:20.3]} 61... Rb6 {[%clk 0:00:10.6]} 62. Ra7 {[%clk 0:00:21.6]} 62...
R6b7 {[%clk 0:00:11.8]} 63. Ra5 {[%clk 0:00:20.9]} 63... Rb5 {[%clk 0:00:11]}
64. Ra7 {[%clk 0:00:21.6]} 64... R8b7 {[%clk 0:00:11.5]} 65. Ra8 {[%clk
0:00:22.9]} 65... Rb8 {[%clk 0:00:13]} 66. Ra7 {[%clk 0:00:24.4]} 66... R5b7
{[%clk 0:00:10.5]} 67. Ra5 {[%clk 0:00:25.6]} 67... Bb4 {[%clk 0:00:11.8]} 68.
Bxb4 {[%clk 0:00:22]} 68... Rxb4 {[%clk 0:00:13.7]} 69. Rxf5 {[%clk 0:00:22.8]}
69... Rxb2 {[%clk 0:00:14.9]} 70. Ra5 {[%clk 0:00:24.1]} 70... R2b4 {[%clk
0:00:14.7]} 71. Ra7 {[%clk 0:00:24]} 71... Rf8+ {[%clk 0:00:16.1]} 72. Kg2
{[%clk 0:00:25.5]} 72... Rb6 {[%clk 0:00:17.1]} 73. Re7 {[%clk 0:00:25.6]} 73...
Rbf6 {[%clk 0:00:18]} 74. Kh3 {[%clk 0:00:26.1]} 74... Rb8 {[%clk 0:00:14.2]}
75. Re4 {[%clk 0:00:23.5]} 75... Rff8 {[%clk 0:00:14.1]} 76. Re7 {[%clk
0:00:24.3]} 76... Rf6 {[%clk 0:00:14.7]} 77. Re4 {[%clk 0:00:24.3]} 77... Rb7
{[%clk 0:00:14.3]} 78. Re5 {[%clk 0:00:22.2]} 78... Rf8 {[%clk 0:00:15]} 79. Rd5
{[%clk 0:00:21]} 79... Rc8 {[%clk 0:00:13.6]} 80. Rf5 {[%clk 0:00:19.8]} 80...
Re7 {[%clk 0:00:11.9]} 81. Rd5 {[%clk 0:00:20.7]} 81... g6 {[%clk 0:00:12.4]}
82. Rd6 {[%clk 0:00:20.7]} 82... Kg7 {[%clk 0:00:13.7]} 83. Ne6+ {[%clk
0:00:22]} 83... Kf7 {[%clk 0:00:13]} 84. Ng5+ {[%clk 0:00:22.9]} 84... Kg7
{[%clk 0:00:14.5]} 85. Ne6+ {[%clk 0:00:24.5]} 85... Kh7 {[%clk 0:00:10.2]} 86.
Nf4 {[%clk 0:00:23.1]} 86... Rg8 {[%clk 0:00:07.5]} 87. Nd5 {[%clk 0:00:23.7]}
87... Rf7 {[%clk 0:00:05.8]} 88. Nf6+ {[%clk 0:00:24.8]} 88... Rxf6 {[%clk
0:00:07.1]} 89. Rxf6 {[%clk 0:00:26.7]} 89... Kg7 {[%clk 0:00:08.6]} 90. Ra6
{[%clk 0:00:27.5]} 90... Rf8 {[%clk 0:00:09.8]} 91. Kg4 {[%clk 0:00:27.8]} 91...
Rc8 {[%clk 0:00:10.4]} 92. Ra5 {[%clk 0:00:27]} 92... Kh6 {[%clk 0:00:10.4]} 93.
Ra4 {[%clk 0:00:26.3]} 93... Rc3 {[%clk 0:00:11.5]} 94. Rf4 {[%clk 0:00:26.9]}
94... Rb3 {[%clk 0:00:12.5]} 95. Rf3 {[%clk 0:00:27.4]} 95... Rb4+ {[%clk
0:00:13.8]} 96. Kh3 {[%clk 0:00:29]} 96... Ra4 {[%clk 0:00:14.9]} 97. Rf8 {[%clk
0:00:28.1]} 97... Kg7 {[%clk 0:00:15.4]} 98. Rb8 {[%clk 0:00:29]} 98... Kh6
{[%clk 0:00:16.4]} 99. Rb5 {[%clk 0:00:29.7]} 99... Rc4 {[%clk 0:00:16]} 100.
Rb3 {[%clk 0:00:31]} 100... Ra4 {[%clk 0:00:16.9]} 101. Rc3 {[%clk 0:00:32.6]}
101... Rb4 {[%clk 0:00:18]} 102. g4 {[%clk 0:00:33.9]} 102... Ra4 {[%clk
0:00:17.6]} 103. Re3 {[%clk 0:00:35.2]} 103... Rb4 {[%clk 0:00:17.9]} 104. Kg3
{[%clk 0:00:36.5]} 104... Ra4 {[%clk 0:00:19.1]} 105. Re8 {[%clk 0:00:37.3]}
105... Kg7 {[%clk 0:00:16.3]} 106. Re7+ {[%clk 0:00:37.4]} 106... Kf6 {[%clk
0:00:17.5]} 107. Re8 {[%clk 0:00:35.7]} 107... Kf7 {[%clk 0:00:18.6]} 108. Re3
{[%clk 0:00:36.3]} 108... Kf6 {[%clk 0:00:19.5]} 109. Rb3 {[%clk 0:00:34]}
109... Kg7 {[%clk 0:00:19.4]} 110. Rb6 {[%clk 0:00:34.8]} 110... Kf7 {[%clk
0:00:19.4]} 111. Rb7+ {[%clk 0:00:35.4]} 111... Kf6 {[%clk 0:00:20.3]} 112. g5+
{[%clk 0:00:26.8]} 112... Ke5 {[%clk 0:00:14.3]} 113. Rf7 {[%clk 0:00:22.3]}
113... Ra3+ {[%clk 0:00:14.1]} 114. Rf3 {[%clk 0:00:23.6]} 114... Ra4 {[%clk
0:00:07.2]} 115. Rb3 {[%clk 0:00:21.5]} 115... Ra6 {[%clk 0:00:03]} 116. Rb4
{[%clk 0:00:21.6]} 116... Kf5 {[%clk 0:00:04]} 117. Rf4+ {[%clk 0:00:19.7]}
117... Ke5 {[%clk 0:00:05.1]} 118. Kg4 {[%clk 0:00:20.9]} 118... Rb6 {[%clk
0:00:05.2]} 119. Ra4 {[%clk 0:00:21.7]} 119... Ke6 {[%clk 0:00:05]} 120. Rf4
{[%clk 0:00:18.1]} 120... Ke7 {[%clk 0:00:05.7]} 121. h5 {[%clk 0:00:18.5]}
121... gxh5+ {[%clk 0:00:03.4]} 122. Kxh5 {[%clk 0:00:20.4]} 122... Rb8 {[%clk
0:00:04.2]} 123. Kh6 {[%clk 0:00:20.4]} 123... Rb1 {[%clk 0:00:03.4]} 124. g6
{[%clk 0:00:21.4]} 124... Rh1+ {[%clk 0:00:03.3]} 125. Kg7 {[%clk 0:00:22.9]}
125... Rh2 {[%clk 0:00:03]} 126. Kg8 {[%clk 0:00:23.8]} 126... Ke6 {[%clk
0:00:03.4]} 127. g7 {[%clk 0:00:24.3]} 127... Ke5 {[%clk 0:00:04.7]} 128. Rf7
{[%clk 0:00:21.6]} 128... Ra2 {[%clk 0:00:04.1]} 129. Rb7 {[%clk 0:00:17]}
129... Ke6 {[%clk 0:00:04]} 130. Rb6+ {[%clk 0:00:13.1]} 130... Kf5 {[%clk
0:00:05.3]} 131. Kh7 {[%clk 0:00:14]} 131... Ra7 {[%clk 0:00:03]} 132. Kh8
{[%clk 0:00:14.4]} 1-0

[Event "*** Titled Tuesday 3|2 Blitz"]
[Site "Chess.com"]
[Date "2016.10.04"]
[Round "4"]
[White "Izoria123"]
[Black "NIGWAPO"]
[Result "1-0"]
[WhiteElo "2570"]
[BlackElo "2430"]
[TimeControl "180+2"]
[EndTime "17:46:57 PDT"]
[Termination "Izoria123 won by resignation"]

1. e4 {[%clk 0:03:02]} 1... d5 {[%clk 0:03:00]} 2. exd5 {[%clk 0:03:02.9]} 2...
Qxd5 {[%clk 0:03:01.2]} 3. Nf3 {[%clk 0:03:02.4]} 3... Nf6 {[%clk 0:03:00.6]} 4.
Nc3 {[%clk 0:03:02.5]} 4... Qa5 {[%clk 0:03:00.5]} 5. d4 {[%clk 0:03:02.6]} 5...
c6 {[%clk 0:02:57.7]} 6. Bc4 {[%clk 0:03:01.3]} 6... Bf5 {[%clk 0:02:58.4]} 7.
Bd2 {[%clk 0:03:01.4]} 7... Nbd7 {[%clk 0:02:54.3]} 8. Qe2 {[%clk 0:02:44.6]}
8... e6 {[%clk 0:02:55.4]} 9. d5 {[%clk 0:02:44]} 9... cxd5 {[%clk 0:02:53.2]}
10. Nxd5 {[%clk 0:02:44.3]} 10... Qd8 {[%clk 0:02:54.8]} 11. Nxf6+ {[%clk
0:02:43.5]} 11... Qxf6 {[%clk 0:02:55.8]} 12. Bb5 {[%clk 0:02:29.4]} 12... O-O-O
{[%clk 0:02:18.5]} 13. O-O {[%clk 0:02:25.1]} 13... h6 {[%clk 0:01:56]} 14. Qc4+
{[%clk 0:02:04.5]} 14... Kb8 {[%clk 0:01:34.1]} 15. Bf4+ {[%clk 0:02:02.1]}
15... e5 {[%clk 0:01:34.8]} 16. Bxd7 {[%clk 0:01:58.4]} 16... exf4 {[%clk
0:01:24.4]} 17. Qxf4+ {[%clk 0:02:00.3]} 17... Bd6 {[%clk 0:01:24.5]} 18. Qxf5
{[%clk 0:02:01]} 1-0